fUSD/lending_fUSD_20250818
["ID","MTS","AMOUNT","RATE_DAILY","PERIOD"]
[380100224,1755543035580,-500.0,0.00010998,2]
[380100225,1755543035594,-150.0,0.00010998,2]
[380100226,1755543035608,-500.0,0.00010998,2]
[380100227,1755543035622,-500.0,0.00010998,2]
[380100228,1755543035637,-500.0,0.00010998,2]
[380100229,1755543035651,-500.0,0.00010998,2]
[380100230,1755543035666,-1123.0,0.00010998,2]
[380100231,1755543035680,-150.0,0.00010998,2]
[380100232,1755543035695,-1835.0,0.00010998,2]
[380100233,1755543035710,-500.0,0.00010998,2]
[380100234,1755543035724,-150.0,0.00010998,2]
[380100235,1755543035738,-500.0,0.00010998,2]
[380100236,1755543035752,-150.0,0.00010998,2]
[380100237,1755543035767,-1173.0,0.00010998,2]
[380100238,1755543035782,-150.0,0.00010998,2]
[380100239,1755543035796,-530.0,0.00010998,2]
[380100240,1755543035810,-500.0,0.00010998,2]
[380100241,1755543035824,-500.0,0.00010998,2]
[380100242,1755543035839,-500.0,0.00010998,2]
[380100243,1755543035852,-500.0,0.00010998,2]
[380100244,1755543035867,-500.0,0.00010998,2]
[380100245,1755543035882,-150.0,0.00010998,2]
[380100246,1755543035896,-500.0,0.00010998,2]
[380100247,1755543035909,-500.0,0.00010998,2]
[380100248,1755543035925,-212.921,0.00010999,2]
[380100249,1755543035939,-659.0,0.00011,2]
[380100250,1755543035953,-91281.35672289,0.00011,2]
[380100251,1755543035967,-23075.62092401,0.00011,2]
[380100252,1755543035987,-810.72850976,0.00011,2]
[380100253,1755543036005,-438.47196682,0.00011,2]
[380100255,1755543036078,264.30738282,0.00013319,12]
[380100256,1755543036103,-357.0363872,0.00011,2]
[380100257,1755543036121,-1592.63010587,0.00011,2]
[380100258,1755543036177,-1217.90063364,0.00011,2]
[380100259,1755543036193,-856.17346966,0.00011,2]
[380100260,1755543036211,-3284.9779279,0.00011,2]
[380100262,1755543036372,-1198.1860162,0.00011,2]
[380100263,1755543036390,-10148.62669569,0.00011,2]
[380100286,1755543040259,155.0,0.000221,120]
[380100301,1755543042614,-150.0,0.00010998,2]
[380100302,1755543042624,-3066.13058712,0.00011,2]
[380100303,1755543042652,-287.33488781,0.00011,2]
[380100304,1755543042663,-643.10981564,0.00011,2]
[380100305,1755543042673,-282.71098613,0.00011,2]
[380100306,1755543042694,-22939.83278097,0.00011,2]
[380100307,1755543042708,-3254.57,0.00011,2]
[380100308,1755543042732,-2539.6049813,0.00011,2]
[380100309,1755543042745,-597.0,0.00011,2]
[380100310,1755543042757,-2550.65872182,0.00011,2]
[380100311,1755543042785,-352543.28103676,0.00011,2]
[380100312,1755543042794,-4688934.63622743,0.00011,2]
[380100455,1755543044194,-747.072,0.00011,2]
[380100466,1755543044288,-394.3719,0.00011,2]
[380100475,1755543044362,-13091.45928,0.00011,2]
[380100476,1755543044398,-358.75155501,0.00011,2]
[380100477,1755543044410,-260.20470427,0.00011,2]
[380101184,1755543051521,-173.58779364,9.511e-05,2]
[380101224,1755543051890,155.0,0.0002151,90]
[380101267,1755543067785,-303.49617833,9.511e-05,2]
[380101268,1755543076118,-22.91602803,9.511e-05,2]
[380101269,1755543076147,-17.15550873,9.511e-05,2]
[380101270,1755543076600,-183.97019508,9.511e-05,2]
[380101271,1755543082139,-172.37068897,9.511e-05,2]
[380101272,1755543089757,-152.45,9.511e-05,2]
[380101297,1755544231751,-258.76,9.631e-05,2]
[380101298,1755544231765,-276.93715058,9.639e-05,2]
[380101299,1755544232168,-223.06284942,9.639e-05,2]
[380101300,1755544232177,-500.0,9.646e-05,2]
[380101301,1755544232187,-42.07481678,9.669e-05,2]
[380101302,1755544232198,-457.92518322,9.669e-05,2]
[380101303,1755544232207,-192.72250102,9.681e-05,2]
[380101304,1755544232218,-302.21206583,9.681e-05,2]
[380101305,1755544232228,-1000.0,9.682e-05,2]
[380101306,1755544232237,-169.58,9.682e-05,2]
[380101307,1755544232247,-69.41024993,9.682e-05,2]
[380101308,1755544232259,-109.22701201,9.682e-05,2]
[380101309,1755544232269,-500.0,9.69e-05,2]
[380101310,1755544232279,-250.0,9.719e-05,2]
[380101311,1755544232289,-300.0,9.938e-05,2]
[380101312,1755544232298,-82.66599594,9.938e-05,2]
[380101313,1755544232310,-217.33400406,9.938e-05,2]
[380101314,1755544232320,-166.28022791,9.939e-05,2]
[380101315,1755544232330,-128.38576803,9.939e-05,2]
[380101316,1755544232426,-19871.60423197,9.939e-05,2]
[380101317,1755544232436,-152.45,9.945e-05,2]
[380101318,1755544232446,-168.03,9.952e-05,2]
[380101319,1755544232455,-1500.0,0.00010006,2]
[380101320,1755544232467,-170.0,0.0001003,7]
[380101321,1755544232476,-1174.61,0.00010042,2]
[380101322,1755544232486,-152.45,0.00010044,2]
[380101323,1755544232495,-244.52,0.0001005,2]
[380101324,1755544232505,-200.0,0.00010105,2]
[380101325,1755544232515,-173.56,0.00010178,2]
[380101326,1755544232524,-500.0,0.00010192,2]
[380101327,1755544232533,-277.35679052,0.00010449,2]
[380101328,1755544232543,-150.0,0.00010547,2]
[380101329,1755544232553,-160.0,0.00010548,2]
[380101330,1755544232562,-721.12765535,0.00010548,2]
[380101331,1755544232571,-300.0,0.00010548,2]
[380101332,1755544232580,-710.98047045,0.00010548,2]
[380101333,1755544232593,-289.01952955,0.00010548,2]
[380101334,1755544232602,-1000.0,0.00010548,2]
[380101335,1755544232611,-1000.0,0.00010548,2]
[380101336,1755544232620,-151.0,0.00010548,2]
[380101337,1755544232630,-843.78711038,0.00010559,2]
[380101338,1755544232640,-458.40919931,0.00010559,2]
[380101339,1755544232649,-212.00699823,0.00010559,2]
[380101340,1755544232659,-136.19738985,0.00010595,2]
[380101341,1755544232670,-318.42312928,0.00010595,2]
[380101353,1755544235757,-1545.37948087,0.00010595,2]
[380101354,1755544235769,-500.0,0.00010595,2]
[380101355,1755544235779,-300.0,0.00010595,2]
[380101356,1755544235789,-500.0,0.00010595,2]
[380101357,1755544235798,-1723.85720457,0.00010595,2]
[380101358,1755544235811,-276.14279543,0.00010595,2]
[380101359,1755544235820,-160.28,0.00010816,2]
[380101360,1755544235830,-150.0,0.00010828,2]
[380101361,1755544235840,-300.0,0.00010828,2]
[380101362,1755544235850,-150.0,0.00010828,2]
[380101363,1755544235861,-300.0,0.00010828,2]
[380101364,1755544235869,-258.76,0.00010835,2]
[380101365,1755544235879,-173.56,0.00010836,2]
[380101366,1755544235888,-166.16,0.00010864,2]
[380101367,1755544235898,-8895.7653,0.00010888,2]
[380101368,1755544235907,-1000.0,0.00010892,2]
[380101369,1755544235916,-230.9334,0.000109,2]
[380101370,1755544235926,-3916.54355998,0.000109,2]
[380101371,1755544235936,-2500.0,0.000109,2]
[380101372,1755544235945,-796.6802391,0.000109,2]
[380101373,1755544235955,-3774.57130041,0.000109,2]
[380101374,1755544235963,-707.20110423,0.000109,2]
[380101375,1755544235991,-292.79889577,0.000109,2]
[380101376,1755544236000,-1655.994,0.00010908,2]
[380101377,1755544236009,-2000.0,0.00010959,2]
[380101378,1755544236018,-200.0,0.00010959,2]
[380101379,1755544236027,-153.493,0.00010959,2]
[380101380,1755544236037,-500.0,0.00010973,2]
[380101381,1755544236046,-246.84192583,0.00010973,2]
[380101382,1755544236055,-500.0,0.00010973,2]
[380101383,1755544236064,-500.0,0.00010973,2]
[380101384,1755544236074,-233.26397507,0.00010973,2]
[380101385,1755544236092,-266.73602493,0.00010973,2]
[380101386,1755544236101,-500.0,0.00010973,2]
[380101387,1755544236110,-500.0,0.00010973,2]
[380101388,1755544236119,-500.0,0.00010973,2]
[380101389,1755544236129,-633.33403806,0.00010973,2]
[380101390,1755544236515,-366.57956994,0.00010973,2]
[380101394,1755544237773,-133.42043006,0.00010973,2]
[380101395,1755544237783,-413.0084215,0.00010991,2]
[380101396,1755544237792,-206.5042108,0.00010991,2]
[380101397,1755544237802,-413.0084215,0.00010992,2]
[380101398,1755544237814,-413.0084215,0.00010992,2]
[380101399,1755544237824,-413.0084215,0.00010992,2]
[380101400,1755544237833,-413.0084215,0.00010992,2]
[380101401,1755544237846,-206.5042108,0.00010992,2]
[380101402,1755544237856,-206.5042108,0.00010992,2]
[380101403,1755544237865,-206.5042108,0.00010992,2]
[380101404,1755544237875,-206.5042108,0.00010992,2]
[380101405,1755544237885,-213.2586166,0.00010998,2]
[380101406,1755544237895,-500.0,0.00010998,2]
[380101407,1755544237904,-150.0,0.00010998,2]
[380101408,1755544237914,-500.0,0.00010998,2]
[380101409,1755544237923,-150.0,0.00010998,2]
[380101410,1755544237933,-500.0,0.00010998,2]
[380101411,1755544237942,-150.0,0.00010998,2]
[380101412,1755544237952,-500.0,0.00010998,2]
[380101413,1755544237962,-500.0,0.00010998,2]
[380101414,1755544237973,-2370.0,0.00010998,2]
[380101415,1755544237982,-500.0,0.00010998,2]
[380101416,1755544237992,-205.02295732,0.00010998,2]
[380101417,1755544238001,-150.0,0.00010998,2]
[380101418,1755544238011,-150.0,0.00010998,2]
[380101419,1755544238020,-500.0,0.00010998,2]
[380101420,1755544238029,-500.0,0.00010998,2]
[380101421,1755544238039,-1460.0,0.00010998,2]
[380101422,1755544238049,-500.0,0.00010998,2]
[380101423,1755544238058,-500.0,0.00010998,2]
[380101424,1755544238068,-150.0,0.00010998,2]
[380101425,1755544238077,-500.0,0.00010998,2]
[380101426,1755544238087,-500.0,0.00010998,2]
[380101427,1755544238097,-500.0,0.00010998,2]
[380101428,1755544238107,-150.0,0.00010998,2]
[380101429,1755544238116,-500.0,0.00010998,2]
[380101430,1755544238125,-500.0,0.00010998,2]
[380101432,1755544238135,-500.0,0.00010998,2]
[380101434,1755544238145,-500.0,0.00010998,2]
[380101436,1755544238155,-500.0,0.00010998,2]
[380101439,1755544238165,-500.0,0.00010998,2]
[380101441,1755544238175,-1124.0,0.00010998,2]
[380101443,1755544238184,-500.0,0.00010998,2]
[380101445,1755544238193,-150.0,0.00010998,2]
[380101447,1755544238203,-508.0,0.00010998,2]
[380101450,1755544238213,-686.0,0.00011,2]
[380101452,1755544238223,-1998.28764529,0.00011,2]
[380101454,1755544238233,-4120603.23928921,0.00011,2]
[380101456,1755544238243,-378001.33,0.00011,2]
[380101458,1755544238252,-151.0,0.00011,2]
[380101460,1755544238262,-151.0,0.00011,2]
[380101462,1755544238272,-151.0,0.00011,2]
[380101464,1755544238282,-151.0,0.00011,2]
[380101466,1755544238291,-151.0,0.00011,2]
[380101468,1755544238301,-151.0,0.00011,2]
[380101470,1755544238311,-151.0,0.00011,2]
[380101472,1755544238320,-151.0,0.00011,2]
[380101474,1755544238329,-151.0,0.00011,2]
[380101476,1755544238339,-151.0,0.00011,2]
[380101478,1755544238349,-151.0,0.00011,2]
[380101480,1755544238358,-151.0,0.00011,2]
[380101482,1755544238367,-151.0,0.00011,2]
[380101484,1755544238378,-166.8683779,0.00011,2]
[380101486,1755544238387,-21432.28,0.00011,2]
[380101488,1755544238397,-496315.64678631,0.00011,2]
[380101493,1755544238436,-2997.3389534,0.00011,2]
[380101629,1755544239790,-534.3970835,0.000109,2]
[380101631,1755544239801,-714.19660535,0.00011,2]
[380101652,1755544239997,-4500.0,0.00011,2]
[380101957,1755544242803,-281.897616,0.00011,2]
[380101962,1755544242815,-550.67120004,0.00011,2]
[380101971,1755544242859,-4008.43292873,0.00011,2]
[380101975,1755544242871,-337.27249606,0.00011,2]
[380101996,1755544243024,-8769.64029612,0.00011,2]
[380102004,1755544243088,-313.24668514,0.00011,2]
[380102376,1755544247130,-10393.34616638,0.00011,2]
[380102381,1755544247175,-830.75790658,0.00011,2]
[380102384,1755544247188,-263.98149903,0.00011,2]
[380102389,1755544247225,-921.23341343,0.00011,2]
[380102391,1755544247238,-3399.37802863,0.00011,2]
[380102393,1755544247249,-2289.21095997,0.00011,2]
[380102396,1755544247261,-1767.9,0.00011,2]
[380102401,1755544247303,-1408.4811812,0.00011,2]
[380102405,1755544247331,-1287.65059539,0.00011,2]
[380103434,1755544817563,237.87664454,0.00013184,11]
[380103436,1755545294536,290.99,9.049e-05,2]
[380103470,1755545432745,-211.54844608,9.887e-05,2]
[380103471,1755545432756,-300.0,9.887e-05,2]
[380103472,1755545432767,-988.0,9.887e-05,2]
[380103473,1755545432779,-150.00000001,9.888e-05,2]
[380103474,1755545432791,-150.0,9.888e-05,2]
[380103475,1755545432802,-153.66457484,9.888e-05,2]
[380103476,1755545432813,-46.78697907,9.888e-05,2]
[380103477,1755545432826,-103.21302093,9.888e-05,2]
[380103478,1755545432837,-150.1680995,9.888e-05,2]
[380103479,1755545432849,-150.0,9.888e-05,2]
[380103480,1755545432859,-150.0,9.888e-05,2]
[380103481,1755545432869,-150.0,9.888e-05,2]
[380103482,1755545432878,-150.0,9.888e-05,2]
[380103483,1755545432888,-150.0,9.888e-05,2]
[380103484,1755545432898,-12.15755943,9.888e-05,2]
[380103485,1755545432955,-137.84244057,9.888e-05,2]
[380103486,1755545432965,-150.0,9.888e-05,2]
[380103487,1755545432975,-150.0,9.888e-05,2]
[380103488,1755545432985,-150.0,9.888e-05,2]
[380103489,1755545432994,-150.0,9.888e-05,2]
[380103490,1755545433004,-150.0,9.888e-05,2]
[380103491,1755545433013,-112.15755943,9.888e-05,2]
[380103492,1755545433025,-37.84244057,9.888e-05,2]
[380103493,1755545433036,-150.0,9.888e-05,2]
[380103494,1755545433047,-500.0,9.893e-05,2]
[380103495,1755545433057,-153.66457484,9.899e-05,2]
[380103496,1755545433068,-500.0,9.903e-05,2]
[380103497,1755545433079,-150.0,9.907e-05,2]
[380103498,1755545433090,-153.66457484,9.91e-05,2]
[380103499,1755545433100,-150.0,9.914e-05,2]
[380103500,1755545433111,-150.0,9.917e-05,2]
[380103501,1755545433122,-150.0,9.92e-05,2]
[380103502,1755545433136,-153.66457484,9.921e-05,2]
[380103503,1755545433148,-150.0,9.921e-05,2]
[380103504,1755545433159,-150.0,9.921e-05,2]
[380103505,1755545433171,-150.0,9.926e-05,2]
[380103506,1755545433182,-150.0,9.927e-05,2]
[380103507,1755545433194,-153.66457484,9.932e-05,2]
[380103508,1755545433207,-150.0,9.938e-05,2]
[380103509,1755545433218,-150.0,9.94e-05,2]
[380103510,1755545433228,-150.0,9.941e-05,2]
[380103511,1755545433238,-153.66457484,9.943e-05,2]
[380103512,1755545433248,-150.0,9.944e-05,2]
[380103513,1755545433258,-150.0,9.945e-05,2]
[380103514,1755545433267,-150.0,9.947e-05,2]
[380103515,1755545433277,-150.0,9.952e-05,2]
[380103516,1755545433287,-150.0,9.953e-05,2]
[380103517,1755545433297,-153.66457484,9.954e-05,2]
[380103518,1755545433308,-150.0,9.954e-05,2]
[380103519,1755545433320,-150.0,9.954e-05,2]
[380103520,1755545433329,-150.0,9.963e-05,2]
[380103521,1755545433339,-153.66457484,9.965e-05,2]
[380103522,1755545433349,-150.0,9.966e-05,2]
[380103523,1755545433358,-150.0,9.968e-05,2]
[380103524,1755545433368,-153.66457484,9.976e-05,2]
[380103525,1755545433379,-150.0,9.977e-05,2]
[380103526,1755545433388,-150.0,9.982e-05,2]
[380103527,1755545433400,-150.0,9.985e-05,2]
[380103528,1755545433411,-153.66457484,9.988e-05,2]
[380103529,1755545433422,-150.0,9.988e-05,2]
[380103530,1755545433434,-150.0,9.988e-05,2]
[380103531,1755545433445,-150.0,9.988e-05,2]
[380103532,1755545433454,-150.0,9.992e-05,2]
[380103533,1755545433464,-150.0,9.995e-05,2]
[380103534,1755545433473,-153.66457484,9.999e-05,2]
[380103535,1755545433484,-150.0,0.00010001,2]
[380103536,1755545433494,-150.0,0.00010003,2]
[380103537,1755545433504,-150.0,0.00010005,2]
[380103538,1755545433514,-150.0,0.00010006,2]
[380103539,1755545433524,-153.66457484,0.0001001,2]
[380103540,1755545433534,-150.0,0.00010017,2]
[380103541,1755545433543,-150.0,0.0001002,2]
[380103542,1755545433554,-153.66457484,0.00010021,2]
[380103543,1755545433564,-150.0,0.00010021,2]
[380103544,1755545433573,-150.0,0.00010021,2]
[380103545,1755545433583,-150.0,0.00010022,2]
[380103546,1755545433594,-153.66457484,0.00010032,2]
[380103547,1755545433603,-150.0,0.00010036,2]
[380103548,1755545433613,-150.0,0.00010037,2]
[380103549,1755545433622,-150.0,0.00010039,2]
[380103550,1755545433632,-153.66457484,0.00010043,2]
[380103551,1755545433642,-150.0,0.00010045,2]
[380103552,1755545433652,-150.0,0.00010045,2]
[380103553,1755545433662,-1000.0,0.00010047,2]
[380103554,1755545433672,-150.0,0.00010048,2]
[380103555,1755545433682,-150.0,0.00010049,2]
[380103556,1755545433692,-153.66457484,0.00010054,2]
[380103557,1755545433701,-150.0,0.00010054,2]
[380103558,1755545433711,-150.0,0.00010054,2]
[380103559,1755545433720,-396.8,0.00010055,2]
[380103560,1755545433731,-150.0,0.00010058,2]
[380103561,1755545433741,-150.0,0.00010061,2]
[380103562,1755545433751,-153.66457484,0.00010065,2]
[380103563,1755545433761,-150.0,0.00010066,2]
[380103564,1755545433771,-170.0,0.00010072,7]
[380103565,1755545433781,-150.0,0.00010075,2]
[380103566,1755545433792,-153.66457484,0.00010076,2]
[380103567,1755545433802,-150.0,0.00010077,2]
[380103568,1755545433813,-150.0,0.00010082,2]
[380103569,1755545433824,-150.0,0.00010084,2]
[380103570,1755545433834,-153.66457484,0.00010087,2]
[380103571,1755545433843,-150.0,0.00010087,2]
[380103572,1755545433853,-150.0,0.00010087,2]
[380103573,1755545433863,-150.0,0.00010087,2]
[380103574,1755545433873,-150.0,0.00010096,2]
[380103575,1755545433882,-150.0,0.00010096,2]
[380103576,1755545433893,-205.02,0.00010096,2]
[380103577,1755545433902,-112.73753356,0.00010097,2]
[380103578,1755545435220,-37.26246644,0.00010097,2]
[380103579,1755545435230,-153.66457484,0.00010099,2]
[380103580,1755545435240,-150.0,0.00010102,2]
[380103581,1755545435249,-153.66457484,0.0001011,2]
[380103582,1755545435258,-150.0,0.00010114,2]
[380103583,1755545435267,-150.0,0.00010115,2]
[380103584,1755545435276,-150.0,0.00010119,2]
[380103585,1755545435286,-153.66457484,0.00010121,2]
[380103586,1755545435295,-150.0,0.00010121,2]
[380103587,1755545435305,-150.0,0.00010121,2]
[380103588,1755545435321,-150.0,0.00010123,2]
[380103589,1755545435331,-150.0,0.00010125,2]
[380103590,1755545435340,-150.0,0.00010129,2]
[380103591,1755545435349,-587.3,0.00010131,2]
[380103592,1755545435358,-153.66457484,0.00010132,2]
[380103593,1755545435367,-150.0,0.00010134,2]
[380103594,1755545435376,-150.0,0.00010137,2]
[380103595,1755545435385,-153.66457484,0.00010143,2]
[380103596,1755545435394,-150.0,0.00010146,2]
[380103597,1755545435404,-1373.78481679,0.00010149,2]
[380103598,1755545435452,-126.21518321,0.00010149,2]
[380103599,1755545435461,-150.0,0.00010149,2]
[380103600,1755545435470,-150.0,0.00010153,2]
[380103601,1755545435480,-153.66457484,0.00010154,2]
[380103602,1755545435490,-150.0,0.00010154,2]
[380103603,1755545435501,-150.0,0.00010154,2]
[380103604,1755545435510,-150.0,0.00010155,2]
[380103605,1755545435519,-150.0,0.00010156,2]
[380103606,1755545435528,-150.0,0.00010162,2]
[380103607,1755545435537,-150.0,0.00010162,2]
[380103608,1755545435546,-150.0,0.00010162,2]
[380103609,1755545435555,-153.66457484,0.00010165,2]
[380103610,1755545435564,-150.0,0.00010172,2]
[380103611,1755545435573,-153.66457484,0.00010176,2]
[380103612,1755545435583,-150.0,0.00010177,2]
[380103613,1755545435592,-134.80109227,0.00010178,2]
[380103743,1755545439795,-15.19890773,0.00010178,2]
[380103745,1755545439805,-150.0,0.00010182,2]
[380103747,1755545439815,-150.0,0.00010185,2]
[380103749,1755545439824,-153.66457484,0.00010187,2]
[380103751,1755545439834,-150.0,0.00010187,2]
[380103753,1755545439844,-150.0,0.00010187,2]
[380103756,1755545439854,-150.0,0.00010187,2]
[380103758,1755545439863,-150.0,0.00010191,2]
[380103760,1755545439874,-153.66457484,0.00010198,2]
[380103762,1755545439883,-150.0,0.00010202,2]
[380103764,1755545439894,-150.0,0.00010202,2]
[380103766,1755545439903,-150.0,0.00010209,2]
[380103768,1755545439913,-153.66457484,0.00010209,2]
[380103770,1755545439923,-150.0,0.0001021,2]
[380103772,1755545439933,-150.0,0.00010211,2]
[380103774,1755545439943,-150.0,0.00010214,2]
[380103776,1755545439953,-153.66457484,0.00010221,2]
[380103778,1755545439962,-150.0,0.00010221,2]
[380103780,1755545439971,-150.0,0.00010221,2]
[380103782,1755545439981,-150.0,0.00010229,2]
[380103784,1755545439991,-153.66457484,0.00010232,2]
[380103786,1755545440000,-150.0,0.00010235,2]
[380103788,1755545440009,-150.0,0.00010236,2]
[380103790,1755545440018,-150.0,0.00010237,2]
[380103792,1755545440028,-150.0,0.00010241,2]
[380103794,1755545440038,-153.66457484,0.00010243,2]
[380103796,1755545440047,-150.0,0.00010243,2]
[380103798,1755545440056,-150.0,0.00010244,2]
[380103800,1755545440065,-150.0,0.00010248,2]
[380103802,1755545440074,-153.66457484,0.00010254,2]
[380103804,1755545440084,-150.0,0.00010254,2]
[380103806,1755545440093,-150.0,0.00010254,2]
[380103808,1755545440102,-150.0,0.00010254,2]
[380103810,1755545440111,-150.0,0.00010254,2]
[380103812,1755545440120,-150.0,0.00010263,2]
[380103814,1755545440132,-153.66457484,0.00010265,2]
[380103816,1755545440141,-150.0,0.00010267,2]
[380103818,1755545440150,-150.0,0.00010274,2]
[380103820,1755545440160,-150.0,0.00010275,2]
[380103822,1755545440170,-153.66457484,0.00010276,2]
[380103824,1755545440181,-150.0,0.0001028,2]
[380103826,1755545440191,-178.08,0.00010283,2]
[380103828,1755545440203,-150.0,0.00010285,2]
[380103830,1755545440214,-153.66457484,0.00010287,2]
[380103832,1755545440225,-150.0,0.00010287,2]
[380103834,1755545440234,-150.0,0.00010287,2]
[380103836,1755545440244,-150.0,0.00010287,2]
[380103838,1755545440254,-150.0,0.0001029,2]
[380103840,1755545440263,-150.0,0.00010292,2]
[380103842,1755545440273,-153.66457484,0.00010298,2]
[380103843,1755545440282,-150.0,0.000103,2]
[380103845,1755545440291,-150.0,0.00010303,2]
[380103847,1755545440301,-150.0,0.00010304,2]
[380103849,1755545440310,-150.0,0.00010306,2]
[380103851,1755545440320,-150.0,0.00010308,2]
[380103853,1755545440329,-153.66457484,0.00010309,2]
[380103855,1755545440339,-150.0,0.00010316,2]
[380103857,1755545440348,-150.0,0.00010319,2]
[380103859,1755545440357,-153.66457484,0.0001032,2]
[380103861,1755545440367,-150.0,0.0001032,2]
[380103863,1755545440376,-150.0,0.0001032,2]
[380103865,1755545440386,-150.0,0.00010323,2]
[380103868,1755545440396,-153.66457484,0.00010332,2]
[380103870,1755545440405,-150.0,0.00010333,2]
[380103872,1755545440414,-150.0,0.00010337,2]
[380103874,1755545440423,-150.0,0.0001034,2]
[380103876,1755545440432,-150.0,0.00010342,2]
[380103878,1755545440442,-153.66457484,0.00010343,2]
[380103880,1755545440450,-150.0,0.00010343,2]
[380103882,1755545440459,-150.0,0.0001035,2]
[380103884,1755545440469,-153.66457484,0.00010354,2]
[380103886,1755545440478,-150.0,0.00010354,2]
[380103888,1755545440488,-150.0,0.00010354,2]
[380103890,1755545440497,-150.0,0.00010359,2]
[380103892,1755545440506,-150.0,0.00010359,2]
[380103894,1755545440516,-150.0,0.00010361,2]
[380103896,1755545440525,-150.0,0.00010363,2]
[380103898,1755545440535,-153.66457484,0.00010365,2]
[380103900,1755545440544,-150.0,0.0001037,2]
[380103902,1755545440553,-150.0,0.00010372,2]
[380103904,1755545440562,-153.66457484,0.00010376,2]
[380103906,1755545440571,-150.0,0.0001038,2]
[380103908,1755545440580,-153.66457484,0.00010387,2]
[380103910,1755545440590,-150.0,0.00010387,2]
[380103912,1755545440599,-150.0,0.00010387,2]
[380103914,1755545440609,-150.0,0.00010387,2]
[380103916,1755545440619,-150.0,0.00010392,2]
[380103918,1755545440629,-150.0,0.00010397,2]
[380103920,1755545440638,-150.0,0.00010398,2]
[380103922,1755545440648,-153.66457484,0.00010398,2]
[380103924,1755545440658,-150.0,0.00010399,2]
[380103926,1755545440668,-150.0,0.00010405,2]
[380103928,1755545440677,-150.0,0.00010408,2]
[380103930,1755545440686,-153.66457484,0.00010409,2]
[380103932,1755545440695,-150.0,0.00010411,2]
[380103934,1755545440705,-150.0,0.00010418,2]
[380103936,1755545440714,-153.66457484,0.0001042,2]
[380103938,1755545440723,-150.0,0.0001042,2]
[380103940,1755545440732,-150.0,0.0001042,2]
[380103942,1755545440741,-150.0,0.00010422,2]
[380103944,1755545440751,-150.0,0.00010424,2]
[380103946,1755545440760,-153.66457484,0.00010431,2]
[380103948,1755545440769,-178.08,0.00010436,2]
[380103950,1755545440778,-150.0,0.00010437,2]
[380103952,1755545440787,-150.0,0.00010437,2]
[380103954,1755545440796,-150.0,0.00010437,2]
[380103956,1755545440806,-150.0,0.00010437,2]
[380103958,1755545440815,-150.0,0.00010437,2]
[380103960,1755545440825,-150.0,0.00010437,2]
[380103962,1755545440834,-150.0,0.00010437,2]
[380103964,1755545440843,-153.66457484,0.00010443,2]
[380103966,1755545440852,-150.0,0.0001045,2]
[380103968,1755545440861,-150.0,0.00010452,2]
[380103970,1755545440870,-153.66457484,0.00010454,2]
[380103972,1755545440879,-150.0,0.00010454,2]
[380103974,1755545440889,-150.0,0.00010454,2]
[380103976,1755545440899,-150.0,0.00010456,2]
[380103978,1755545440908,-150.0,0.00010463,2]
[380103980,1755545440917,-153.66457484,0.00010465,2]
[380103982,1755545440926,-150.0,0.00010466,2]
[380103984,1755545440935,-150.0,0.00010469,2]
[380103986,1755545440944,-150.0,0.00010475,2]
[380103988,1755545440954,-1680.36,0.00010475,2]